fUST/lending_fUST_20240703
["ID","MTS","AMOUNT","RATE_DAILY","PERIOD"]
[331038029,1720021855883,-500.0,0.00015821,2]
[331038030,1720021855892,-500.0,0.00015821,2]
[331038031,1720021855902,-226.62394622,0.00015821,2]
[331038032,1720021855911,-500.0,0.00015821,2]
[331038033,1720021855924,-500.0,0.00015821,2]
[331038034,1720021855934,-500.0,0.00015821,2]
[331038035,1720021855943,-500.0,0.00015821,2]
[331038036,1720021855952,-453.90398681,0.00015821,2]
[331038037,1720021855962,-500.0,0.00015821,2]
[331038038,1720021855972,-1232.16,0.00015821,2]
[331038039,1720021855981,-500.0,0.00015821,2]
[331038040,1720021855991,-500.0,0.00015821,2]
[331038041,1720021856001,-1100.18,0.00015821,2]
[331038042,1720021856010,-500.0,0.00015821,2]
[331038043,1720021856020,-500.0,0.00015821,2]
[331038044,1720021856030,-500.0,0.00015821,2]
[331038045,1720021856039,-500.0,0.00015821,2]
[331038046,1720021856048,-500.0,0.00015821,2]
[331038047,1720021856059,-500.0,0.00015821,2]
[331038048,1720021856068,-500.0,0.00015821,2]
[331038049,1720021856078,-500.0,0.00015821,2]
[331038050,1720021856087,-245.58663929,0.00015821,2]
[331038051,1720021856097,-500.0,0.00015821,2]
[331038052,1720021856107,-500.0,0.00015821,2]
[331038053,1720021856118,-505.47616847,0.00015821,2]
[331038054,1720021856127,-500.0,0.00015821,2]
[331038055,1720021856138,-500.0,0.00015821,2]
[331038056,1720021856150,-500.0,0.00015821,2]
[331038057,1720021856159,-500.0,0.00015821,2]
[331038058,1720021856168,-500.0,0.00015821,2]
[331038059,1720021856178,-500.0,0.00015821,2]
[331038060,1720021856187,-500.0,0.00015821,2]
[331038061,1720021856197,-151.0,0.00015821,2]
[331038062,1720021856206,-151.0,0.00015821,2]
[331038063,1720021856215,-229.146789,0.00015821,2]
[331038064,1720021856225,-500.0,0.00015821,2]
[331038065,1720021856234,-500.0,0.00015889,2]
[331038066,1720021856243,-558.18848646,0.00015889,2]
[331038067,1720021856252,-500.0,0.00015889,2]
[331038068,1720021856261,-500.0,0.00015889,2]
[331038069,1720021856270,-1243.73,0.00015939,2]
[331038070,1720021856279,-608.68,0.00015939,2]
[331038071,1720021856288,-500.0,0.00015939,2]
[331038072,1720021856297,-500.0,0.00015939,2]
[331038073,1720021856306,-500.0,0.00015939,2]
[331038074,1720021856315,-1469.96,0.00015939,2]
[331038075,1720021856324,-500.0,0.00015957,2]
[331038076,1720021856333,-500.0,0.00015957,2]
[331038077,1720021856342,-500.0,0.00015957,2]
[331038078,1720021856351,-314.83730394,0.00015958,2]
[331038079,1720021856359,-207.88910412,0.00015958,2]
[331038080,1720021856371,-1056.31,0.00015958,2]
[331038081,1720021856379,-500.0,0.00015958,2]
[331038082,1720021856388,-500.0,0.00015958,2]
[331038083,1720021856397,-500.0,0.00015958,2]
[331038084,1720021856407,-505.54,0.00015958,2]
[331038085,1720021856416,-500.0,0.00015958,2]
[331038086,1720021856425,-500.0,0.00015958,2]
[331038087,1720021856435,-500.0,0.00015958,2]
[331038088,1720021856444,-508.69478158,0.00015958,2]
[331038089,1720021856453,-151.0,0.00015958,2]
[331038090,1720021856463,-505.48716138,0.00015958,2]
[331038091,1720021856473,-500.0,0.00015958,2]
[331038092,1720021856482,-500.0,0.00015958,2]
[331038093,1720021856491,-500.0,0.00015958,2]
[331038094,1720021856502,-500.0,0.00015958,2]
[331038095,1720021856511,-151.0,0.00015958,2]
[331038096,1720021856521,-278.73058,0.00015958,2]
[331038097,1720021856531,-200.51794061,0.00015958,2]
[331038098,1720021856540,-500.0,0.00015958,2]
[331038099,1720021856550,-278.73058,0.00015958,2]
[331038100,1720021856560,-162.374602,0.00015958,2]
[331038101,1720021856571,-833.448572,0.00015958,2]
[331038102,1720021856580,-162.374602,0.00015958,2]
[331038103,1720021856590,-151.0,0.00015958,2]
[331038104,1720021856600,-833.448572,0.00015958,2]
[331038105,1720021856608,-151.0,0.00015958,2]
[331038106,1720021856620,-500.0,0.00015958,2]
[331038107,1720021856629,-268.30497245,0.00015958,2]
[331038108,1720021856638,-344.33461375,0.00015958,2]
[331038109,1720021856648,-504.94221601,0.00015958,2]
[331038110,1720021856657,-500.0,0.00015958,2]
[331038111,1720021856668,-807.053756,0.00015958,2]
[331038112,1720021856678,-807.053756,0.00015958,2]
[331038113,1720021856688,-500.0,0.00015958,2]
[331038114,1720021856697,-500.0,0.00015958,2]
[331038115,1720021856706,-151.0,0.00015958,2]
[331038116,1720021856715,-500.0,0.00015958,2]
[331038117,1720021856724,-269.641914,0.00015958,2]
[331038118,1720021856733,-568.5,0.00015958,2]
[331038119,1720021856742,-160.566935,0.00015958,2]
[331038120,1720021856751,-269.641914,0.00015958,2]
[331038121,1720021856760,-500.0,0.00015958,2]
[331038122,1720021856769,-512.27467619,0.00015958,2]
[331038123,1720021856779,-160.566935,0.00015958,2]
[331038124,1720021856791,-500.0,0.00015958,2]
[331038125,1720021856799,-500.0,0.00015958,2]
[331038126,1720021856809,-500.0,0.00015958,2]
[331038127,1720021856818,-151.0,0.00015958,2]
[331038128,1720021856827,-500.0,0.00015958,2]
[331038129,1720021856836,-500.0,0.00015958,2]
[331038130,1720021856845,-504.93629153,0.00015958,2]
[331038131,1720021856854,-473.32055559,0.00015958,2]
[331038132,1720021856864,-500.0,0.00015958,2]
[331038133,1720021856873,-559.108345,0.00015958,2]
[331038134,1720021856882,-559.108345,0.00015958,2]
[331038135,1720021856891,-500.0,0.00015958,2]
[331038136,1720021856901,-479.76235649,0.00015995,2]
[331038137,1720021856910,-490.92415155,0.00015995,2]
[331038138,1720021856921,-500.0,0.00016093,2]
[331038139,1720021856931,-580.58028816,0.00016093,2]
[331038140,1720021856940,-500.0,0.00016093,2]
[331038141,1720021856950,-500.0,0.00016093,2]
[331038142,1720021856961,-500.0,0.00016093,2]
[331038143,1720021856970,-500.0,0.00016093,2]
[331038144,1720021856979,-500.0,0.00016093,2]
[331038145,1720021856988,-500.0,0.00016093,2]
[331038146,1720021857000,-500.0,0.00016093,2]
[331038147,1720021857009,-838.7,0.00016093,2]
[331038148,1720021857018,-500.0,0.00016093,2]
[331038149,1720021857027,-500.0,0.00016093,2]
[331038150,1720021857036,-500.0,0.00016093,2]
[331038151,1720021857046,-8443.31,0.00016093,2]
[331038152,1720021857056,-500.0,0.00016093,2]
[331038153,1720021857065,-866.09,0.00016093,2]
[331038154,1720021857074,-500.0,0.00016093,2]
[331038155,1720021857084,-503.53612767,0.00016094,2]
[331038156,1720021857093,-500.0,0.00016094,2]
[331038157,1720021857102,-4395.66,0.00016094,2]
[331038158,1720021857111,-500.0,0.00016094,2]
[331038159,1720021857121,-500.0,0.00016094,2]
[331038160,1720021857131,-500.0,0.00016094,2]
[331038161,1720021857140,-2038.09,0.00016094,2]
[331038162,1720021857149,-500.0,0.00016094,2]
[331038163,1720021857158,-500.0,0.00016094,2]
[331038164,1720021857167,-368.247161,0.00016094,2]
[331038165,1720021857177,-368.247161,0.00016094,2]
[331038166,1720021857186,-1444.836265,0.00016094,2]
[331038167,1720021857195,-1444.836265,0.00016094,2]
[331038168,1720021857204,-789.44,0.00016094,2]
[331038169,1720021857213,-500.0,0.00016094,2]
[331038170,1720021857222,-500.0,0.00016094,2]
[331038171,1720021857231,-1267.63,0.00016094,2]
[331038172,1720021857240,-946.73,0.00016094,2]
[331038173,1720021857250,-500.0,0.00016094,2]
[331038174,1720021857259,-628.29,0.00016094,2]
[331038175,1720021857268,-500.0,0.00016094,2]
[331038176,1720021857277,-500.0,0.00016094,2]
[331038177,1720021857286,-3517.93,0.00016094,2]
[331038178,1720021857295,-501.8468945,0.00016094,2]
[331038179,1720021857304,-510.31,0.00016095,2]
[331038180,1720021857313,-500.0,0.00016095,2]
[331038181,1720021857322,-630.38,0.00016095,2]
[331038182,1720021857332,-500.0,0.00016095,2]
[331038183,1720021857341,-393.4,0.00016095,2]
[331038184,1720021857350,-500.0,0.00016095,2]
[331038185,1720021857360,-500.0,0.00016095,2]
[331038186,1720021857372,-500.0,0.00016095,2]
[331038187,1720021857382,-500.0,0.00016095,2]
[331038188,1720021857391,-500.0,0.00016095,2]
[331038189,1720021857400,-1232.16,0.00016095,2]
[331038190,1720021857410,-500.0,0.00016095,2]
[331038191,1720021857420,-500.0,0.00016095,2]
[331038192,1720021857429,-1100.18,0.00016095,2]
[331038193,1720021857439,-500.0,0.00016095,2]
[331038194,1720021857448,-635.05746531,0.00016095,2]
[331038195,1720021857457,-500.0,0.00016095,2]
[331038196,1720021857467,-500.0,0.00016095,2]
[331038197,1720021857552,-500.0,0.00016095,2]
[331038198,1720021857570,-500.0,0.00016095,2]
[331038199,1720021857579,-500.0,0.00016095,2]
[331038200,1720021857588,-500.0,0.00016095,2]
[331038201,1720021857598,-605.15786581,0.00016095,2]
[331038202,1720021857607,-500.0,0.00016095,2]
[331038203,1720021857618,-500.0,0.00016095,2]
[331038204,1720021857627,-500.0,0.00016095,2]
[331038205,1720021857636,-500.0,0.00016095,2]
[331038206,1720021857645,-500.0,0.00016095,2]
[331038207,1720021857655,-500.0,0.00016095,2]
[331038208,1720021857663,-500.0,0.00016095,2]
[331038209,1720021857673,-520.62,0.00016095,2]
[331038210,1720021857682,-151.0,0.00016095,2]
[331038211,1720021857691,-559.108345,0.00016095,2]
[331038212,1720021857700,-559.108345,0.00016095,2]
[331038213,1720021857710,-151.0,0.00016095,2]
[331038214,1720021857719,-229.146789,0.00016095,2]
[331038215,1720021857728,-500.0,0.00016095,2]
[331038216,1720021857737,-500.0,0.00016163,2]
[331038217,1720021857746,-3312.17,0.00016199,2]
[331038218,1720021857756,-6000.0,0.000162,2]
[331038219,1720021857765,-1243.73,0.00016213,2]
[331038220,1720021857774,-608.68,0.00016213,2]
[331038221,1720021857784,-500.0,0.00016213,2]
[331038222,1720021857793,-500.0,0.00016213,2]
[331038223,1720021857803,-500.0,0.00016213,2]
[331038224,1720021857812,-1469.96,0.00016213,2]
[331038225,1720021857822,-500.0,0.00016231,2]
[331038226,1720021857832,-460.43522616,0.00016231,2]
[331038227,1720021857842,-500.0,0.00016231,2]
[331038228,1720021857852,-1056.31,0.00016232,2]
[331038229,1720021857861,-258.74513208,0.00016232,2]
[331038230,1720021857872,-500.0,0.00016232,2]
[331038231,1720021857881,-505.54,0.00016232,2]
[331038232,1720021857889,-500.0,0.00016232,2]
[331038233,1720021857899,-500.0,0.00016232,2]
[331038234,1720021857908,-500.0,0.00016232,2]
[331038235,1720021857919,-500.0,0.00016232,2]
[331038236,1720021857932,-500.0,0.00016232,2]
[331038237,1720021857941,-500.0,0.00016232,2]
[331038238,1720021857950,-500.0,0.00016232,2]
[331038239,1720021857960,-500.0,0.00016232,2]
[331038240,1720021857969,-500.0,0.00016232,2]
[331038241,1720021857979,-500.0,0.00016232,2]
[331038242,1720021857988,-500.0,0.00016232,2]
[331038243,1720021857999,-500.0,0.00016232,2]
[331038244,1720021858008,-500.0,0.00016232,2]
[331038245,1720021858017,-500.0,0.00016232,2]
[331038246,1720021858026,-500.0,0.00016232,2]
[331038247,1720021858035,-500.0,0.00016232,2]
[331038248,1720021858045,-499.99972297,0.00016232,2]
[331038249,1720021858055,-500.0,0.00016253,2]
[331038250,1720021858064,-3312.17,0.00016253,2]
[331038251,1720021858073,-3312.17,0.00016253,2]
[331038252,1720021858082,-3312.17,0.00016253,2]
[331038253,1720021858092,-3312.17,0.00016253,2]
[331038254,1720021858101,-3312.17,0.00016253,2]
[331038255,1720021858111,-3312.17,0.00016253,2]
[331038256,1720021858125,-3312.3989,0.00016253,2]
[331038257,1720021858136,-100000.0,0.00016254,2]
[331038258,1720021858144,-57205.26798616,0.00016254,2]
[331038259,1720021858153,-97253.7876295,0.00016254,2]
[331038260,1720021858162,-151.0,0.00016254,2]
[331038261,1720021858172,-151.0,0.00016254,2]
[331038262,1720021858181,-184.674352,0.00016254,2]
[331038263,1720021858190,-163.039356,0.00016254,2]
[331038264,1720021858199,-154.03322,0.00016254,2]
[331038265,1720021858208,-151.0,0.00016254,2]
[331038266,1720021858218,-209.046709,0.00016254,2]
[331038267,1720021858227,-151.0,0.00016254,2]
[331038268,1720021858236,-151.0,0.00016254,2]
[331038269,1720021858245,-151.0,0.00016254,2]
[331038270,1720021858254,-151.0,0.00016254,2]
[331038271,1720021858263,-151.513971,0.00016254,2]
[331038272,1720021858272,-151.0,0.00016254,2]
[331038273,1720021858282,-151.0,0.00016254,2]
[331038274,1720021858291,-151.0,0.00016254,2]
[331038275,1720021858300,-151.0,0.00016254,2]
[331038276,1720021858309,-151.0,0.00016254,2]
[331038277,1720021858318,-151.0,0.00016254,2]
[331038278,1720021858327,-151.0,0.00016254,2]
[331038279,1720021858337,-151.0,0.00016254,2]
[331038280,1720021858346,-151.0,0.00016254,2]
[331038281,1720021858355,-278.73058,0.00016254,2]
[331038282,1720021858369,-278.73058,0.00016254,2]
[331038283,1720021858378,-278.73058,0.00016254,2]
[331038284,1720021858387,-278.73058,0.00016254,2]
[331038285,1720021858396,-162.374602,0.00016254,2]
[331038286,1720021858405,-162.374602,0.00016254,2]
[331038287,1720021858414,-833.448572,0.00016254,2]
[331038288,1720021858423,-833.448572,0.00016254,2]
[331038289,1720021858432,-162.374602,0.00016254,2]
[331038290,1720021858441,-162.374602,0.00016254,2]
[331038291,1720021858450,-151.0,0.00016254,2]
[331038292,1720021858459,-151.0,0.00016254,2]
[331038293,1720021858469,-833.448572,0.00016254,2]
[331038294,1720021858478,-833.448572,0.00016254,2]
[331038295,1720021858489,-151.0,0.00016254,2]
[331038296,1720021858499,-244.96364,0.00016254,2]
[331038297,1720021858508,-807.053756,0.00016254,2]
[331038298,1720021858518,-807.053756,0.00016254,2]
[331038299,1720021858529,-807.053756,0.00016254,2]
[331038300,1720021858538,-807.053756,0.00016254,2]
[331038301,1720021858548,-152.404611,0.00016254,2]
[331038302,1720021858558,-269.641914,0.00016254,2]
[331038303,1720021858567,-269.641914,0.00016254,2]
[331038304,1720021858577,-160.566935,0.00016254,2]
[331038305,1720021858586,-368.247161,0.00016254,2]
[331038306,1720021858595,-160.566935,0.00016254,2]
[331038307,1720021858604,-269.641914,0.00016254,2]
[331038308,1720021858613,-368.247161,0.00016254,2]
[331038309,1720021858622,-269.641914,0.00016254,2]
[331038310,1720021858631,-368.247161,0.00016254,2]
[331038311,1720021858640,-368.247161,0.00016254,2]
[331038312,1720021858650,-160.566935,0.00016254,2]
[331038313,1720021858660,-1444.836265,0.00016254,2]
[331038314,1720021858669,-1444.836265,0.00016254,2]
[331038315,1720021858678,-160.566935,0.00016254,2]
[331038316,1720021858687,-1444.836265,0.00016254,2]
[331038317,1720021858696,-1444.836265,0.00016254,2]
[331038318,1720021858705,-151.0,0.00016254,2]
[331038319,1720021858714,-559.108345,0.00016254,2]
[331038320,1720021858723,-559.108345,0.00016254,2]
[331038321,1720021858732,-559.108345,0.00016254,2]
[331038322,1720021858742,-559.108345,0.00016254,2]
[331038323,1720021858751,-151.0,0.00016254,2]
[331038324,1720021858760,-229.146789,0.00016254,2]
[331038325,1720021858769,-155.06768222,0.00016255,2]
[331038326,1720021858779,-33101.3724563,0.00016255,2]
[331038327,1720021858790,-13398.64578653,0.00016255,2]
[331038328,1720021858799,-20295.84082716,0.00016255,2]
[331038329,1720021858808,-154.9211913,0.00016255,2]
[331038330,1720021858818,-13996.12507636,0.00016255,2]
[331038331,1720021858826,-151.0,0.00016255,2]
[331038332,1720021858836,-151.0,0.00016255,2]
[331038333,1720021858845,-151.0,0.00016255,2]
[331038334,1720021858854,-151.0,0.00016255,2]
[331038335,1720021858863,-151.0,0.00016255,2]
[331038336,1720021858873,-151.0,0.00016255,2]
[331038337,1720021858882,-278.73058,0.00016255,2]
[331038338,1720021858891,-278.73058,0.00016255,2]
[331038339,1720021858900,-162.374602,0.00016255,2]
[331038340,1720021858908,-833.448572,0.00016255,2]
[331038341,1720021858923,-162.374602,0.00016255,2]
[331038342,1720021858932,-151.0,0.00016255,2]
[331038343,1720021858941,-833.448572,0.00016255,2]
[331038344,1720021858950,-807.053756,0.00016255,2]
[331038345,1720021858962,-807.053756,0.00016255,2]
[331038346,1720021858972,-269.641914,0.00016255,2]
[331038347,1720021858980,-160.566935,0.00016255,2]
[331038348,1720021858990,-368.247161,0.00016255,2]
[331038349,1720021859001,-269.641914,0.00016255,2]
[331038350,1720021859010,-368.247165,0.00016255,2]
[331038351,1720021859020,-1444.836265,0.00016255,2]
[331038352,1720021859029,-160.566935,0.00016255,2]
[331038353,1720021859039,-1444.836261,0.00016255,2]
[331038354,1720021859048,-250.0,0.00016266,2]
[331038355,1720021859060,-150.0,0.00016285,2]
[331038356,1720021859070,-150.0,0.00016357,2]
[331038357,1720021859079,-500.0,0.00016367,2]
[331038358,1720021859091,-500.0,0.00016367,2]
[331038359,1720021859100,-500.0,0.00016367,2]
[331038360,1720021859110,-500.0,0.00016367,2]
[331038361,1720021859121,-500.0,0.00016367,2]
[331038362,1720021859131,-500.0,0.00016367,2]
[331038363,1720021859140,-500.0,0.00016367,2]
[331038364,1720021859149,-500.0,0.00016367,2]
[331038365,1720021859158,-838.7,0.00016367,2]
[331038366,1720021859168,-500.0,0.00016367,2]
[331038367,1720021859176,-500.0,0.00016367,2]
[331038368,1720021859186,-500.0,0.00016367,2]
[331038369,1720021859195,-8443.31,0.00016367,2]
[331038370,1720021859204,-500.0,0.00016367,2]
[331038371,1720021859214,-866.09,0.00016367,2]
[331038372,1720021859223,-500.0,0.00016367,2]
[331038373,1720021859232,-511.66813508,0.00016368,2]
[331038374,1720021859241,-4395.66,0.00016368,2]
[331038375,1720021859250,-500.0,0.00016368,2]
[331038376,1720021859259,-500.0,0.00016368,2]
[331038377,1720021859268,-500.0,0.00016368,2]
[331038378,1720021859277,-2038.09,0.00016368,2]
[331038379,1720021859286,-500.0,0.00016368,2]
[331038380,1720021859295,-552.18393632,0.00016368,2]
[331038381,1720021859304,-789.44,0.00016368,2]
[331038382,1720021859313,-598.78076656,0.00016368,2]
[331038383,1720021859322,-500.0,0.00016368,2]
[331038384,1720021859330,-1267.63,0.00016368,2]
[331038385,1720021859339,-946.73,0.00016368,2]
[331038386,1720021859348,-500.0,0.00016368,2]
[331038387,1720021859357,-628.29,0.00016368,2]
[331038388,1720021859366,-500.0,0.00016368,2]
[331038389,1720021859375,-500.0,0.00016368,2]
[331038390,1720021859384,-3517.93,0.00016368,2]
[331038391,1720021859392,-510.31,0.00016369,2]
[331038392,1720021859401,-500.0,0.00016369,2]
[331038393,1720021859409,-630.38,0.00016369,2]
[331038394,1720021859418,-500.0,0.00016369,2]
[331038395,1720021859427,-500.0,0.00016369,2]
[331038396,1720021859436,-500.0,0.00016369,2]
[331038397,1720021859524,-500.0,0.00016369,2]
[331038398,1720021859533,-500.0,0.00016369,2]
[331038399,1720021859542,-500.0,0.00016369,2]
[331038400,1720021859551,-1232.16,0.00016369,2]
[331038401,1720021859559,-500.0,0.00016369,2]
[331038402,1720021859568,-500.0,0.00016369,2]
[331038403,1720021859576,-1100.18,0.00016369,2]
[331038404,1720021859585,-500.0,0.00016369,2]
[331038405,1720021859594,-500.0,0.00016369,2]
[331038406,1720021859602,-500.0,0.00016369,2]
[331038407,1720021859611,-500.0,0.00016369,2]
[331038408,1720021859621,-500.0,0.00016369,2]
[331038409,1720021859630,-500.0,0.00016369,2]
[331038410,1720021859641,-500.0,0.00016369,2]
[331038411,1720021859651,-500.0,0.00016369,2]
[331038412,1720021859659,-500.0,0.00016369,2]
[331038413,1720021859668,-500.0,0.00016369,2]
[331038414,1720021859677,-500.0,0.00016369,2]
[331038415,1720021859686,-500.0,0.00016369,2]
[331038416,1720021859695,-500.0,0.00016369,2]
[331038417,1720021859705,-500.0,0.00016369,2]
[331038418,1720021859713,-500.0,0.00016437,2]
[331038419,1720021859722,-1000.0,0.00016438,2]
[331038420,1720021859731,-166.666666,0.00016438,2]
[331038421,1720021859740,-1243.73,0.00016487,2]
[331038422,1720021859749,-608.68,0.00016487,2]
[331038423,1720021859758,-500.0,0.00016487,2]
[331038424,1720021859766,-500.0,0.00016487,2]
[331038425,1720021859775,-500.0,0.00016487,2]
[331038426,1720021859784,-1469.96,0.00016487,2]
[331038427,1720021859793,-500.0,0.00016505,2]
[331038428,1720021859802,-500.0,0.00016505,2]
[331038429,1720021859811,-1056.31,0.00016506,2]
[331038430,1720021859820,-505.54,0.00016506,2]
[331038431,1720021859829,-500.0,0.00016506,2]
[331038432,1720021859838,-500.0,0.00016506,2]
[331038433,1720021859846,-500.0,0.00016506,2]
[331038434,1720021859855,-260.7266735,0.00016506,2]
[331038435,1720021859865,-500.0,0.00016506,2]
[331038436,1720021859876,-500.0,0.00016506,2]
[331038437,1720021859885,-500.0,0.00016506,2]
[331038438,1720021859894,-500.0,0.00016506,2]
[331038439,1720021859903,-500.0,0.00016506,2]
[331038440,1720021859911,-500.0,0.00016506,2]
[331038441,1720021859924,-500.0,0.00016506,2]
[331038442,1720021859933,-500.0,0.00016506,2]
[331038443,1720021859942,-500.0,0.00016506,2]
[331038444,1720021859951,-500.0,0.00016506,2]
[331038445,1720021859960,-500.0,0.00016506,2]
[331038446,1720021859969,-500.0,0.00016527,2]
[331038447,1720021859977,-500.0,0.00016641,2]
[331038448,1720021859986,-500.0,0.00016641,2]
[331038449,1720021859997,-500.0,0.00016641,2]
[331038450,1720021860006,-500.0,0.00016641,2]
[331038451,1720021860016,-500.0,0.00016641,2]
[331038452,1720021860025,-500.0,0.00016641,2]
[331038453,1720021860034,-576.29988389,0.00016641,2]
[331038454,1720021860043,-500.0,0.00016641,2]
[331038455,1720021860054,-838.7,0.00016641,2]
[331038456,1720021860062,-500.0,0.00016641,2]
[331038457,1720021860071,-500.0,0.00016641,2]
[331038458,1720021860081,-500.0,0.00016641,2]
[331038459,1720021860090,-8443.31,0.00016641,2]
[331038460,1720021860100,-500.0,0.00016641,2]
[331038461,1720021860109,-866.09,0.00016641,2]
[331038462,1720021860124,-500.0,0.00016641,2]
[331038463,1720021860133,-4395.66,0.00016642,2]
[331038464,1720021860143,-500.0,0.00016642,2]
[331038465,1720021860152,-500.0,0.00016642,2]
[331038466,1720021860161,-500.0,0.00016642,2]
[331038467,1720021860170,-2038.09,0.00016642,2]
[331038468,1720021860179,-500.0,0.00016642,2]
[331038469,1720021860188,-789.44,0.00016642,2]
[331038470,1720021860197,-500.0,0.00016642,2]
[331038471,1720021860206,-1267.63,0.00016642,2]
[331038472,1720021860215,-946.73,0.00016642,2]
[331038473,1720021860225,-500.0,0.00016642,2]
[331038474,1720021860235,-628.29,0.00016642,2]
[331038475,1720021860244,-250.2,0.00016642,2]
[331038476,1720021860254,-500.0,0.00016642,2]
[331038477,1720021860263,-3517.93,0.00016642,2]
[331038478,1720021860274,-510.31,0.00016643,2]
[331038479,1720021860283,-500.0,0.00016643,2]
[331038480,1720021860293,-630.38,0.00016643,2]
[331038481,1720021860302,-500.0,0.00016643,2]
[331038482,1720021860312,-275.94458458,0.00016643,2]
[331038483,1720021860321,-500.0,0.00016643,2]
[331038484,1720021860331,-500.0,0.00016643,2]
[331038485,1720021860341,-500.0,0.00016643,2]
[331038486,1720021860350,-210.06,0.00016643,2]
[331038487,1720021860359,-1232.16,0.00016643,2]
[331038488,1720021860369,-500.0,0.00016643,2]
[331038489,1720021860378,-500.0,0.00016643,2]
[331038490,1720021860388,-1100.18,0.00016643,2]
[331038491,1720021860397,-500.0,0.00016643,2]
[331038492,1720021860406,-500.0,0.00016643,2]
[331038493,1720021860415,-500.0,0.00016643,2]
[331038494,1720021860424,-500.0,0.00016643,2]
[331038495,1720021860433,-500.0,0.00016643,2]
[331038496,1720021860442,-500.0,0.00016643,2]
[331038497,1720021860451,-500.0,0.00016643,2]
[331038498,1720021860460,-500.0,0.00016643,2]
[331038499,1720021860469,-500.0,0.00016643,2]
[331038500,1720021860480,-500.0,0.00016643,2]
[331038501,1720021860488,-500.0,0.00016643,2]
[331038502,1720021860499,-500.0,0.00016643,2]
[331038503,1720021860510,-500.0,0.00016643,2]
[331038504,1720021860520,-500.0,0.00016643,2]
[331038505,1720021860529,-500.0,0.00016711,2]
[331038506,1720021860537,-1243.73,0.00016761,2]
[331038507,1720021860546,-608.68,0.00016761,2]
[331038508,1720021860555,-500.0,0.00016761,2]
[331038509,1720021860564,-649.24,0.00016761,2]
[331038510,1720021860572,-162.374602,0.00016761,2]
[331038511,1720021860582,-833.448572,0.00016761,2]
[331038512,1720021860591,-162.374602,0.00016761,2]
[331038513,1720021860600,-833.448572,0.00016761,2]
[331038514,1720021860612,-807.053756,0.00016761,2]
[331038515,1720021860622,-807.053756,0.00016761,2]
[331038516,1720021860631,-269.641914,0.00016761,2]
[331038517,1720021860640,-160.566935,0.00016761,2]
[331038518,1720021860648,-269.641914,0.00016761,2]
[331038519,1720021860658,-160.566935,0.00016761,2]
[331038520,1720021860668,-500.0,0.00016761,2]
[331038521,1720021860677,-1469.96,0.00016761,2]
[331038522,1720021860686,-500.0,0.00016779,2]
[331038523,1720021860695,-1056.31,0.0001678,2]
[331038524,1720021860705,-505.54,0.0001678,2]
[331038525,1720021860714,-500.0,0.0001678,2]
[331038526,1720021860723,-500.0,0.0001678,2]
[331038527,1720021860732,-500.0,0.0001678,2]
[331038528,1720021860741,-500.0,0.0001678,2]